bitfinex/quotes_SOLUSD_20250821
["timestamp","ask_amount","ask_price","bid_price","bid_amount"]
[1755740974048,37.72,187.63,187.62,0.72]
[1755740974249,4.6875,187.65,187.62,4.45670311]
[1755740974450,4.6875,187.65,187.63,0.72]
[1755740974674,4.6875,187.65,187.64,0.72]
[1755740975567,4.6875,187.65,187.62,4.45670311]
[1755740975932,4.6875,187.65,187.63,0.72]
[1755740976366,4.7475,187.65,187.63,0.72]
[1755740978954,4.7475,187.65,187.61,0.72]
[1755740979240,4.7475,187.65,187.6,26.0]
[1755740979241,4.40670311,187.64,187.6,26.0]
[1755740979548,0.67,187.63,187.6,26.0]
[1755740979762,3.73670311,187.64,187.6,26.0]
[1755740980061,9.15420311,187.65,187.61,0.72]
[1755740980444,0.67,187.64,187.6,3.73670311]
[1755740980661,8.48420311,187.65,187.6,4.45670311]
[1755740980867,0.67,187.64,187.6,4.45670311]
[1755740981073,0.67,187.63,187.59,3.76670311]
[1755740981244,0.67,187.62,187.59,0.03]
[1755740981765,4.40670311,187.62,187.59,0.03]
[1755740982142,0.67,187.62,187.6,3.73670311]
[1755740983758,0.67,187.61,187.59,0.03]
[1755740984151,4.40670311,187.61,187.59,0.03]
[1755740984769,0.67,187.6,187.59,0.03]
[1755740984980,18.00229712,187.6,187.59,0.03]
[1755740985469,14.26559401,187.6,187.59,0.03]
[1755740985857,0.67,187.63,187.59,3.76670311]
[1755740986065,37.7,187.62,187.6,3.73670311]
[1755740987041,0.67,187.61,187.59,0.03]
[1755740987242,0.67,187.61,187.59,3.76670311]
[1755740988075,0.67,187.61,187.59,0.03]
[1755740988279,0.67,187.61,187.59,3.76670311]
[1755740988571,0.67,187.61,187.59,0.03]
[1755740990870,37.7,187.62,187.59,0.03]
[1755740991047,0.67,187.61,187.59,0.03]
[1755740991248,37.7,187.62,187.6,3.73670311]
[1755740991451,37.7,187.62,187.61,3.73670311]
[1755740991864,37.7,187.62,187.59,0.03]
[1755740992050,4.7475,187.65,187.61,3.73670311]
[1755740992262,4.7475,187.65,187.6,0.72]
[1755740992263,37.7,187.64,187.63,3.73670311]
[1755740992461,37.7,187.64,187.62,3.73670311]
[1755740993660,37.7,187.64,187.6,0.72]
[1755740993661,38.38,187.64,187.6,0.72]
[1755740993855,38.38,187.64,187.62,3.73670311]
[1755740995781,37.7,187.64,187.63,3.73670311]
[1755740997772,37.7,187.64,187.62,3.73670311]
[1755740997773,38.38,187.64,187.62,3.73670311]
[1755740999958,37.7,187.64,187.61,3.73670311]
[1755741000157,0.68,187.63,187.61,3.73670311]
[1755741000371,0.68,187.62,187.61,3.73670311]
[1755741000565,4.7475,187.65,187.61,4.41670311]
[1755741000899,4.7475,187.65,187.64,3.73670311]
[1755741003188,5.4275,187.65,187.64,3.73670311]
[1755741003569,4.7475,187.65,187.64,3.73670311]
[1755741004588,4.7475,187.65,187.64,4.41670311]
[1755741004758,4.7475,187.65,187.64,3.73670311]
[1755741005179,4.7475,187.65,187.64,4.41670311]
[1755741007876,37.74,187.68,187.65,0.42648471]
[1755741007877,0.06,187.68,187.65,0.42648471]
[1755741008082,0.06,187.7,187.69,0.42648471]
[1755741008279,0.06,187.72,187.69,0.42648471]
[1755741008280,0.06,187.72,187.71,38.8007729]
[1755741008482,0.06,187.72,187.71,13.90725761]
[1755741008669,0.06,187.76,187.72,33.75772936]
[1755741008999,0.06,187.76,187.74,26.0]
[1755741009193,0.06,187.76,187.74,33.75772936]
[1755741009694,0.06,187.76,187.74,39.87674128]
[1755741010272,0.06,187.76,187.74,45.20325667]
[1755741010876,0.06,187.76,187.74,39.87674128]
[1755741011278,0.06,187.76,187.74,32.40333506]
[1755741011618,0.06,187.76,187.74,39.87674128]
[1755741014282,0.06,187.76,187.74,55.20399828]
[1755741014791,0.06,187.76,187.74,54.91967514]
[1755741014980,0.06,187.76,187.74,38.91241814]
[1755741015489,0.06,187.76,187.74,41.04683314]
[1755741015688,0.78,187.75,187.74,3.73670311]
[1755741016906,0.1,187.75,187.74,3.73670311]
[1755741017895,0.78,187.75,187.74,3.73670311]
[1755741020107,0.78,187.75,187.73,3.73670311]
[1755741020810,0.1,187.75,187.74,3.73670311]
[1755741023904,0.8,187.75,187.74,3.73670311]
[1755741024623,0.1,187.75,187.74,3.73670311]
[1755741024821,0.1,187.75,187.74,13.46992161]
[1755741024993,0.1,187.75,187.74,93.55424475]
[1755741026406,0.1,187.75,187.74,131.21424475]
[1755741028906,0.1,187.75,187.74,133.34854575]
[1755741030416,0.1,187.75,187.74,159.34854575]
[1755741030781,0.06,187.76,187.74,159.34854575]
[1755741030782,0.06,187.76,187.75,0.14216157]
[1755741030982,0.06,187.76,187.75,4.54886468]
[1755741032689,0.06,187.76,187.75,35.87509637]
[1755741033210,0.06,187.76,187.75,35.7329348]
[1755741033410,0.06,187.76,187.75,30.02102625]
[1755741034014,0.06,187.76,187.75,30.69102625]
[1755741034202,0.06,187.76,187.75,68.35102625]
[1755741035008,0.06,187.76,187.75,67.68102625]
[1755741035213,0.06,187.76,187.75,73.67725794]
[1755741035599,0.06,187.76,187.75,73.00725794]
[1755741036101,0.06,187.76,187.75,67.68102625]
[1755741036304,0.06,187.76,187.75,149.61521325]
[1755741036811,0.06,187.76,187.75,154.94144494]
[1755741036994,0.06,187.76,187.75,149.61521325]
[1755741037394,0.76,187.76,187.75,149.61521325]
[1755741037718,0.06,187.76,187.75,150.28521325]
[1755741037891,0.06,187.76,187.75,154.94144494]
[1755741038490,0.06,187.76,187.75,149.33089011]
[1755741038688,0.06,187.76,187.75,154.94144494]
[1755741040391,0.06,187.76,187.75,149.61521325]
[1755741041320,0.06,187.76,187.75,154.94144494]
[1755741041503,0.06,187.76,187.75,155.61144494]
[1755741042508,0.06,187.76,187.75,155.75360651]
[1755741042710,0.06,187.79,187.78,26.28432314]
[1755741042917,0.06,187.79,187.78,109.82102625]
[1755741044828,0.76,187.79,187.78,109.53670311]
[1755741045204,0.06,187.79,187.78,109.53670311]
[1755741047008,0.76,187.79,187.78,109.53670311]
[1755741047616,0.76,187.79,187.78,79.8]
[1755741047822,0.76,187.79,187.78,83.53670311]
[1755741048141,0.76,187.79,187.78,3.73670311]
[1755741048518,0.76,187.79,187.75,79.8]
[1755741048823,0.76,187.79,187.78,3.73670311]
[1755741049206,0.06,187.79,187.78,3.73670311]
[1755741049408,0.06,187.79,187.78,29.73670311]
[1755741053918,0.06,187.79,187.78,3.73670311]
[1755741054808,0.77,187.79,187.78,26.0]
[1755741057611,0.06,187.79,187.78,26.0]
[1755741060614,0.77,187.79,187.78,26.0]
[1755741060815,0.06,187.79,187.78,26.0]
[1755741061539,0.06,187.79,187.78,4.44670311]
[1755741062220,0.06,187.79,187.78,3.73670311]
[1755741062646,0.06,187.79,187.78,4.44670311]
[1755741063823,0.06,187.79,187.78,10.05640701]
[1755741064215,0.06,187.79,187.78,89.99856858]
[1755741066246,0.06,187.8,187.79,93.82207872]
[1755741066447,0.06,187.81,187.79,139.64548494]
[1755741066620,0.06,187.81,187.8,18.32662026]
[1755741066820,0.06,187.81,187.8,41.80318782]
[1755741067020,0.06,187.81,187.8,42.51318782]
[1755741068430,0.06,187.81,187.8,61.43359546]
[1755741068728,0.71,187.88,187.83,26.0]
[1755741068934,0.71,187.88,187.87,3.73670311]
[1755741069836,0.71,187.88,187.86,37.64]
[1755741070048,13.59559401,187.95,187.87,3.73670311]
[1755741070245,13.59559401,187.95,187.86,37.64]
[1755741070427,3.73670311,187.92,187.87,3.73670311]
[1755741070622,0.71,187.91,187.86,37.64]
[1755741070828,0.71,187.91,187.84,79.8]
[1755741070829,3.73670311,187.88,187.83,3.73670311]
[1755741071046,0.71,187.87,187.83,3.73670311]
[1755741072028,0.71,187.87,187.82,37.64]
[1755741072228,0.71,187.87,187.83,3.73670311]
[1755741073852,0.71,187.87,187.82,37.64]
[1755741074038,0.71,187.87,187.82,41.37670311]
[1755741074927,13.59559401,187.92,187.84,3.73670311]
[1755741075127,0.71,187.86,187.84,3.73670311]
[1755741076030,0.71,187.88,187.85,3.73670311]
[1755741076229,0.71,187.88,187.86,3.73670311]
[1755741077538,0.77,187.88,187.86,3.73670311]
[1755741077739,0.71,187.87,187.85,3.73670311]
[1755741078744,0.06,187.88,187.86,3.73670311]
[1755741078926,0.06,187.88,187.87,3.73670311]
[1755741079651,0.06,187.88,187.87,4.44670311]
[1755741080158,0.06,187.88,187.87,3.73670311]
[1755741081657,0.06,187.88,187.87,26.0]
[1755741081862,0.06,187.88,187.87,29.73670311]
[1755741082239,0.06,187.88,187.87,35.76953272]
[1755741083048,0.06,187.88,187.87,29.73670311]
[1755741083559,0.06,187.88,187.87,35.77953272]
[1755741083950,0.72,187.88,187.87,26.0]
[1755741084256,0.06,187.88,187.87,29.73670311]
[1755741084459,0.06,187.88,187.87,30.74102625]
[1755741084629,0.06,187.88,187.87,36.06385586]
[1755741084829,0.06,187.88,187.87,73.68385586]
[1755741085044,0.06,187.88,187.87,153.48385586]
[1755741085446,0.06,187.88,187.87,73.82601743]
[1755741085736,0.06,187.88,187.87,89.82132543]
[1755741088363,0.06,187.88,187.87,41.995308]
[1755741088565,0.72,187.88,187.87,15.995308]
[1755741088754,0.06,187.88,187.87,15.995308]
[1755741088951,0.06,187.88,187.87,3.73670311]
[1755741089462,0.06,187.88,187.87,4.45670311]
[1755741089865,0.06,187.88,187.87,10.06385586]
[1755741090247,0.06,187.88,187.87,10.20601743]
[1755741091861,0.06,187.88,187.87,36.20601743]
[1755741092061,0.06,187.88,187.87,32.46931432]
[1755741092256,0.06,187.88,187.87,73.82601743]
[1755741092457,0.06,187.88,187.87,149.88931432]
[1755741092659,0.06,187.88,187.87,153.62601743]
[1755741092854,0.06,187.88,187.87,147.44102625]
[1755741093050,0.06,187.88,187.87,154.89667686]
[1755741093251,0.06,187.88,187.87,155.61667686]
[1755741094855,0.06,187.88,187.87,129.75883843]
[1755741095565,0.06,187.88,187.87,143.35443244]
[1755741101278,0.06,187.9,187.89,5.46442459]
[1755741101464,0.06,187.9,187.89,126.5411277]
[1755741101861,0.06,187.9,187.89,121.36102625]
[1755741102161,0.72,187.9,187.89,87.49772925]
[1755741102374,0.72,187.9,187.89,125.09772925]
[1755741104880,0.06,187.9,187.89,130.41999227]
[1755741106063,0.06,187.9,187.89,131.28215384]
[1755741112795,0.06,187.9,187.89,130.56215384]
[1755741112994,0.06,187.9,187.89,131.28215384]
[1755741115295,0.06,187.9,187.89,130.56215384]
[1755741115676,0.78,187.9,187.89,92.96215384]
[1755741115869,0.78,187.9,187.89,87.49772925]
[1755741116073,0.78,187.9,187.89,125.09772925]
[1755741116666,0.06,187.9,187.89,130.41999227]
[1755741117288,0.78,187.9,187.89,130.41999227]
[1755741118472,0.06,187.9,187.89,130.41999227]
[1755741118667,0.78,187.9,187.89,130.41999227]
[1755741119872,0.06,187.9,187.89,130.41999227]
[1755741120882,0.78,187.9,187.89,125.09772925]
[1755741121974,0.78,187.9,187.89,130.41999227]
[1755741122598,0.78,187.9,187.89,125.09772925]
[1755741122778,0.78,187.9,187.89,87.49772925]
[1755741122979,0.78,187.9,187.89,125.07772925]
[1755741123182,0.06,187.9,187.89,130.39999227]
[1755741125083,0.78,187.9,187.89,125.07772925]
[1755741127907,0.78,187.9,187.89,130.39999227]
[1755741128105,0.78,187.9,187.89,125.07772925]
[1755741130003,0.06,187.9,187.89,130.39999227]
[1755741130502,0.06,187.9,187.89,131.11999227]
[1755741131081,0.06,187.9,187.89,130.39999227]
[1755741132314,0.06,187.9,187.89,131.11999227]
[1755741133296,0.06,187.9,187.89,131.26215384]
[1755741134617,0.78,187.9,187.89,130.54215384]
[1755741134910,0.06,187.9,187.89,130.54215384]
[1755741135110,0.06,187.9,187.89,130.39999227]
[1755741135413,0.78,187.9,187.89,130.39999227]
[1755741136897,0.78,187.9,187.89,124.79340611]
[1755741137110,0.78,187.9,187.89,83.47670311]
[1755741137313,0.78,187.9,187.89,121.05670311]
[1755741137892,0.06,187.9,187.89,121.05670311]
[1755741138609,0.78,187.9,187.89,121.05670311]
[1755741138782,0.78,187.9,187.89,117.32]
[1755741138986,0.78,187.9,187.89,121.05670311]
[1755741139391,0.78,187.9,187.89,126.37896613]
[1755741139692,0.06,187.9,187.89,127.38328927]
[1755741140212,0.06,187.9,187.89,126.66328927]
[1755741141017,0.78,187.9,187.89,121.05670311]
[1755741142817,0.78,187.9,187.89,41.31670311]
[1755741143122,0.78,187.9,187.89,67.31670311]
[1755741143911,0.78,187.9,187.89,63.58]
[1755741145204,0.78,187.9,187.89,67.31670311]
[1755741146503,0.06,187.9,187.89,67.31670311]
[1755741146704,0.06,187.9,187.89,73.33896613]
[1755741147311,0.06,187.9,187.89,47.33896613]
[1755741147824,0.06,187.9,187.89,49.75599727]
[1755741147995,0.06,187.9,187.89,5.86941111]
[1755741148198,0.78,187.9,187.89,41.31670311]
[1755741148396,0.78,187.9,187.89,67.31670311]
[1755741148911,0.78,187.9,187.89,63.58]
[1755741149619,0.78,187.9,187.89,26.0]
[1755741150599,0.78,187.9,187.89,29.73670311]
[1755741152213,0.06,187.9,187.89,29.73670311]
[1755741152391,0.06,187.9,187.89,35.75896613]
[1755741152832,0.06,187.9,187.89,9.75896613]
[1755741153133,0.06,187.9,187.89,10.04328927]
[1755741153509,0.06,187.9,187.89,10.18545084]
[1755741153898,0.06,187.9,187.89,89.92545084]
[1755741154922,0.06,187.9,187.89,127.50545084]
[1755741159625,0.06,187.9,187.89,129.63793084]
[1755741165139,0.78,187.9,187.89,123.16918311]
[1755741165310,0.78,187.9,187.89,149.16918311]
[1755741168724,0.78,187.9,187.89,147.03670311]
[1755741168910,0.78,187.9,187.89,63.56]
[1755741169114,0.78,187.9,187.89,67.29670311]
[1755741169315,0.78,187.9,187.89,26.0]
[1755741176653,0.06,187.9,187.89,13.82999227]
[1755741178349,0.06,187.9,187.89,93.56999227]
[1755741178515,0.06,187.92,187.91,26.14216157]
[1755741178721,0.06,187.94,187.92,0.28432314]
[1755741178917,0.06,187.94,187.93,42.27102625]
[1755741179462,0.06,187.94,187.93,122.15318782]
[1755741180238,0.06,187.94,187.93,127.47431802]
[1755741181043,4.6875,187.96,187.95,30.02102625]
[1755741181243,4.6875,187.96,187.95,67.58102625]
[1755741182149,4.6875,187.96,187.95,73.59159022]
[1755741182458,4.6875,187.96,187.95,72.90159022]
[1755741182642,4.6875,187.96,187.95,35.34159022]
[1755741182966,4.6875,187.96,187.95,72.90159022]
[1755741184044,4.6875,187.96,187.95,152.64159022]
[1755741184253,5.3975,187.96,187.95,147.03670311]
[1755741185167,5.3975,187.96,187.95,109.47670311]
[1755741185340,5.3975,187.96,187.95,147.03670311]
[1755741185535,5.3975,187.96,187.95,109.47670311]
[1755741185740,5.3975,187.96,187.95,41.29670311]
[1755741186668,4.6875,187.96,187.95,41.29670311]
[1755741187443,4.6875,187.96,187.95,3.73670311]
[1755741187644,4.6875,187.96,187.95,41.27670311]
[1755741188936,5.3975,187.96,187.95,67.27670311]
[1755741190766,5.3975,187.96,187.95,63.54]
[1755741190940,5.3975,187.96,187.95,67.27670311]
[1755741191563,5.3975,187.96,187.95,37.54]
[1755741191770,5.3975,187.96,187.94,63.54]
[1755741192070,4.6875,187.96,187.95,3.73670311]
[1755741192264,4.6875,187.96,187.94,67.27670311]
[1755741192666,0.71,187.95,187.94,67.27670311]
[1755741192849,0.71,187.95,187.94,3.73670311]
[1755741193574,4.6875,187.96,187.95,26.0]
[1755741193748,5.3975,187.96,187.95,26.0]
[1755741193949,5.3975,187.96,187.95,3.73670311]
[1755741197584,0.71,187.96,187.95,3.73670311]
[1755741199257,0.71,187.98,187.96,26.0]
[1755741199659,0.06,188.0,187.96,29.73670311]
[1755741199863,0.77,188.0,187.99,29.73670311]
[1755741200952,0.77,188.0,187.99,3.73670311]
[1755741200953,0.06,188.0,187.99,3.73670311]
[1755741203400,0.73,188.0,187.99,3.73670311]
[1755741204695,0.06,188.0,187.99,3.73670311]
[1755741205499,0.73,188.0,187.99,29.73670311]
[1755741206104,0.73,188.0,187.92,79.74]
[1755741206305,0.73,188.0,187.98,26.0]
[1755741206795,0.73,188.0,187.95,29.73670311]
[1755741207103,0.73,188.0,187.96,3.73670311]
[1755741207392,4.46670311,188.0,187.97,26.0]
[1755741207599,4.40670311,187.99,187.97,26.0]
[1755741207765,3.73670311,187.99,187.97,26.0]
[1755741207971,0.67,187.98,187.97,26.0]
[1755741208389,0.67,187.98,187.94,3.73670311]
[1755741208589,0.67,187.98,187.95,26.0]
[1755741211192,4.40670311,187.98,187.94,0.03]
[1755741211613,0.67,187.97,187.94,3.76670311]
[1755741212526,3.73670311,187.99,187.94,3.76670311]
[1755741212690,0.67,187.96,187.94,0.03]
[1755741213023,13.65559401,188.0,187.95,3.73670311]
[1755741213024,0.06,188.0,187.95,3.73670311]
[1755741213302,0.06,188.0,187.94,0.69]
[1755741213303,0.06,188.0,187.99,3.73670311]
[1755741213620,0.06,188.0,187.99,4.39670311]
[1755741220160,0.06,188.0,187.99,3.73670311]
[1755741220450,0.73,188.0,187.98,3.73670311]
[1755741222052,0.06,188.0,187.98,3.73670311]
[1755741225140,0.06,188.0,187.99,3.73670311]
[1755741227577,0.06,188.0,187.99,4.39670311]
[1755741228157,0.06,188.0,187.99,3.73670311]
[1755741229747,0.06,188.0,187.99,4.39670311]
[1755741231549,0.06,188.0,187.99,3.73670311]
[1755741232748,0.73,188.0,187.97,105.8]
[1755741233093,0.73,188.0,187.98,3.73670311]
[1755741235841,0.06,188.0,187.98,3.73670311]
[1755741238380,0.71,187.99,187.97,107.932026]
[1755741238703,0.71,187.99,187.96,26.0]
[1755741238901,0.71,187.99,187.97,26.0]
[1755741239208,0.71,187.98,187.97,26.0]
[1755741239995,4.44670311,187.98,187.94,0.03]
[1755741240199,3.73670311,187.97,187.94,0.03]
[1755741240394,4.44670311,187.97,187.94,0.03]
[1755741240615,0.71,187.96,187.95,26.0]
[1755741241599,0.71,187.96,187.94,26.03]
[1755741241804,3.73670311,187.96,187.94,26.03]
[1755741241990,0.71,187.95,187.94,26.03]
[1755741242185,0.71,187.95,187.94,0.03]
[1755741242509,4.44670311,187.97,187.94,0.03]
[1755741242698,0.71,187.96,187.94,0.03]
[1755741245228,0.71,187.98,187.94,4.48670311]
[1755741245383,0.71,187.97,187.94,0.03]
[1755741245586,4.44670311,187.97,187.94,0.03]
[1755741245788,0.71,187.97,187.94,0.03]
[1755741246017,4.44670311,187.96,187.94,0.03]
[1755741246198,3.73670311,187.96,187.94,0.03]
[1755741246407,0.71,187.95,187.94,26.03]
[1755741247124,0.71,187.98,187.94,26.03]
[1755741247286,4.44670311,187.98,187.94,30.48670311]
[1755741247492,4.44670311,187.98,187.94,29.76670311]
[1755741247688,0.71,187.97,187.94,29.76670311]
[1755741248029,0.71,187.97,187.94,26.03]
[1755741248325,0.71,187.96,187.94,26.03]
[1755741250283,0.71,187.97,187.94,26.03]
[1755741250686,0.71,187.96,187.94,0.03]
[1755741250880,4.44670311,187.96,187.94,0.03]
[1755741251282,0.71,187.95,187.94,0.03]
[1755741252981,3.73670311,187.96,187.94,0.03]
[1755741253384,0.71,187.95,187.94,0.03]
[1755741253793,4.44670311,187.95,187.94,0.03]
[1755741254912,18.04229712,187.95,187.94,0.03]
[1755741256495,55.54229712,187.95,187.94,0.03]
[1755741259806,51.09559401,187.95,187.94,0.03]
[1755741260019,54.83229712,187.95,187.94,0.03]
[1755741260532,55.54229712,187.95,187.94,0.03]
[1755741261023,54.89229712,187.95,187.94,0.03]
[1755741261317,55.60229712,187.95,187.94,0.03]
[1755741262004,55.60229712,187.95,187.94,0.75]
[1755741262005,0.06,187.95,187.94,0.75]
[1755741262325,0.06,187.95,187.94,4.48670311]
[1755741262705,0.06,187.95,187.94,30.48670311]
[1755741264318,0.06,187.95,187.94,29.76670311]
[1755741264519,0.06,187.95,187.94,30.45670311]
[1755741268737,0.06,187.95,187.94,29.76670311]
[1755741269252,0.06,187.95,187.94,30.45670311]
[1755741269406,0.06,187.95,187.94,29.76670311]
[1755741269905,0.06,187.95,187.94,26.03]
[1755741270107,0.06,187.95,187.94,29.76670311]
[1755741271207,0.78,187.95,187.94,29.76670311]
[1755741271413,0.78,187.95,187.94,0.03]
[1755741271816,0.78,187.95,187.94,26.03]
[1755741272235,0.06,187.95,187.94,26.03]
[1755741272438,0.06,187.95,187.94,29.76670311]
[1755741272822,0.78,187.95,187.94,0.03]
[1755741273143,18.11229712,187.95,187.94,0.03]
[1755741273442,18.25445869,187.95,187.94,0.03]
[1755741273615,14.51775558,187.95,187.94,0.03]
[1755741274030,18.25445869,187.95,187.94,0.03]
[1755741274952,14.51775558,187.95,187.94,0.03]
[1755741275139,18.25445869,187.95,187.94,0.03]
[1755741275338,0.06,187.95,187.94,4.45670311]
[1755741275744,0.06,187.95,187.94,30.45670311]
[1755741277350,0.06,187.95,187.94,29.76670311]
[1755741277565,0.78,187.95,187.94,0.03]
[1755741278067,0.06,187.95,187.94,0.03]
[1755741281347,0.78,187.95,187.94,0.03]
[1755741282680,18.11229712,187.95,187.94,0.03]
[1755741282970,14.37559401,187.95,187.94,0.03]
[1755741283352,0.06,187.95,187.94,0.03]
[1755741285092,0.78,187.95,187.94,0.03]
[1755741288389,0.06,187.95,187.94,0.03]
[1755741288801,0.06,187.95,187.94,4.45670311]
[1755741288967,0.06,187.95,187.94,8.50773025]
[1755741289295,0.06,187.97,187.96,26.28432314]
[1755741289605,0.06,187.97,187.96,30.02102625]
[1755741289776,0.06,187.97,187.96,30.71102625]
[1755741290092,0.06,187.97,187.96,32.84316525]
[1755741293175,0.06,187.97,187.96,32.55884211]
[1755741294485,0.06,187.97,187.96,31.86884211]
[1755741294692,0.06,187.97,187.96,32.55884211]
[1755741297904,4.7475,187.97,187.96,32.55884211]
[1755741298703,4.7475,187.97,187.96,31.86884211]
[1755741302114,4.7475,187.97,187.96,32.55884211]
[1755741310430,4.7475,187.97,187.96,32.84316525]
[1755741311319,4.7475,187.97,187.96,112.64316525]
[1755741312065,4.7475,187.97,187.96,111.95316525]
[1755741312367,4.7475,187.97,187.96,112.64316525]
[1755741313044,4.7475,187.97,187.96,149.12884211]
[1755741313741,4.7475,187.97,187.96,149.81884211]
[1755741314248,4.7475,187.97,187.96,149.12884211]
[1755741317257,4.7475,187.97,187.96,69.32884211]
[1755741317552,4.7475,187.97,187.96,70.30316525]
[1755741317728,0.06,187.99,187.96,44.30316525]
[1755741317932,0.06,187.99,187.98,30.02102625]
[1755741318133,0.06,187.99,187.98,67.48102625]
[1755741318334,0.06,187.99,187.98,68.17102625]
[1755741319556,0.06,187.99,187.98,70.30282425]
[1755741323166,0.06,187.99,187.98,150.10282425]
[1755741323377,0.06,187.99,187.98,112.64282425]
[1755741323676,0.06,187.99,187.98,150.10282425]
[1755741325380,0.06,188.01,187.99,0.42648471]
[1755741325574,0.06,188.03,188.02,26.14216157]
[1755741325876,0.65,188.08,188.03,0.42648471]
[1755741326080,0.65,188.08,188.07,4.02102625]
[1755741326378,26.0,188.19,188.1,26.0]
[1755741326379,0.65,188.13,188.1,26.0]
[1755741326563,13.59559401,188.18,188.12,3.73670311]
[1755741326750,3.73670311,188.19,188.14,3.73670311]
[1755741327074,0.65,188.18,188.16,3.73670311]
[1755741327278,3.83670311,188.25,188.17,3.73670311]
[1755741327444,3.73670311,188.24,188.19,3.73670311]
[1755741327883,17.33229712,188.22,188.15,15.974866]
[1755741328089,3.73670311,188.21,188.16,3.73670311]
[1755741328387,0.65,188.2,188.17,3.73670311]
[1755741328878,0.65,188.2,188.16,3.73670311]
[1755741329076,0.65,188.2,188.15,53.414866]
[1755741329275,0.65,188.2,188.15,15.974866]
[1755741329442,0.65,188.2,188.16,3.73670311]
[1755741330152,3.73670311,188.19,188.14,13.595594]
[1755741330354,0.65,188.18,188.13,29.73670311]
[1755741330676,17.33229712,188.17,188.12,3.73670311]
[1755741330875,0.65,188.16,188.12,3.73670311]
[1755741331179,0.65,188.16,188.14,3.736703]
[1755741331480,0.65,188.16,188.12,3.73670311]
[1755741333554,4.38670311,188.16,188.11,3.73670311]
[1755741333851,4.38670311,188.15,188.1,19.71667511]
[1755741334048,0.65,188.19,188.14,3.73670311]
[1755741334252,0.65,188.18,188.16,3.73670311]
[1755741334454,0.65,188.17,188.12,0.72]
[1755741334652,0.65,188.16,188.15,3.73670311]
[1755741335159,0.65,188.18,188.15,3.73670311]
[1755741335363,0.65,188.17,188.15,3.73670311]
[1755741336071,0.06,188.21,188.16,3.73670311]
[1755741336272,0.65,188.19,188.18,3.73670311]
[1755741337188,14.24559401,188.19,188.18,3.73670311]
[1755741337600,0.65,188.19,188.18,3.73670311]
[1755741338313,13.59559401,188.2,188.18,3.73670311]
[1755741338661,14.24559401,188.2,188.19,3.73670311]
[1755741339161,13.59559401,188.2,188.19,3.73670311]
[1755741339379,0.65,188.2,188.19,3.73670311]
[1755741341294,0.06,188.21,188.19,3.73670311]
[1755741341587,0.06,188.21,188.2,3.73670311]
[1755741342511,0.06,188.21,188.2,4.45670311]
[1755741342683,0.06,188.21,188.2,4.74102625]
[1755741343213,0.06,188.24,188.22,26.0]
[1755741343368,0.06,188.24,188.23,4.02102625]
[1755741343571,0.06,188.24,188.23,4.88318782]
[1755741343888,0.1,188.25,188.24,0.28432314]
[1755741344096,14.24559401,188.34,188.24,8.47772936]
[1755741344403,0.65,188.33,188.25,0.72]
[1755741344608,4.38670311,188.33,188.24,0.28432314]
[1755741344785,17.33229712,188.31,188.26,3.73670311]
[1755741344992,17.33229712,188.31,188.24,26.0]
[1755741345198,13.59559401,188.29,188.2,0.72]
[1755741345499,13.59559401,188.27,188.23,3.73670311]